fUST/lending_fUST_20260117
["ID","MTS","AMOUNT","RATE_DAILY","PERIOD"]
[402283478,1768643438312,-315.65115286,0.00010448,2]
[402283480,1768643438322,-1388.12,0.00010902,2]
[402283482,1768643438331,-50.35388937,0.00011133,2]
[402283606,1768643440838,-3e-08,0.00011133,2]
[402284000,1768643445519,-188.51589559,0.00011133,2]
[402284002,1768643445529,-1735.15,0.00011356,2]
[402284004,1768643445538,-1200.0,0.0001181,2]
[402284006,1768643445548,-1856.56491632,0.00011811,2]
[402284090,1768643446898,-225.61508368,0.00011811,2]
[402284092,1768643446908,-274.19834044,0.00011991,2]
[402284094,1768643446917,-108.30149304,0.00012,2]
[402284097,1768643446928,-112.69850696,0.00012,2]
[402284098,1768643446938,-300.0,0.00012256,2]
[402284100,1768643446947,-300.0,0.00012256,2]
[402284102,1768643446956,-300.0,0.00012256,2]
[402284104,1768643446965,-1581.85697204,0.00012257,2]
[402284106,1768643446975,-2429.21,0.00012265,2]
[402284108,1768643446984,-2776.24,0.00012719,2]
[402284110,1768643446993,-1200.0,0.00012991,2]
[402284112,1768643447002,-275.3075488,0.00013133,2]
[402284114,1768643447012,-3123.27,0.00013173,2]
[402284116,1768643447021,-300.0,0.00013451,2]
[402284118,1768643447031,-420.0,0.00013451,2]
[402284120,1768643447041,-3470.3,0.00013628,2]
[402284121,1768643447051,-580.442466,0.00014658,2]
[402284122,1768643447060,-587.0,0.00014762,2]
[402284123,1768643447069,-1226.50605235,0.00014968,2]
[402284124,1768643447081,-1046.47294562,0.00014968,2]
[402284125,1768643447090,-332.0453809,0.00014978,2]
[402284348,1768644479475,158.63,9.99e-06,2]
[402284425,1768644632473,-195.68867292,0.00010108,2]
[402284426,1768644632483,-227.17,0.00011101,2]
[402284428,1768644632493,-340.76,0.00012026,2]
[402284430,1768644632502,-230.91263404,0.00012108,2]
[402284432,1768644632514,-700.3350841,0.00012125,2]
[402284434,1768644632524,-616.4171657,0.00012164,2]
[402284435,1768644632535,-2350.4380903,0.000122,2]
[402284436,1768644632543,-300.0,0.00012526,2]
[402284437,1768644632553,-551.37065474,0.00012527,2]
[402284438,1768644632564,-2205.48261897,0.00012527,2]
[402284439,1768644632572,-495.27792418,0.00012527,2]
[402284440,1768644632584,-1981.11169674,0.00012527,2]
[402284441,1768644632593,-4453.04381635,0.00012527,2]
[402284442,1768644632602,-582.88536861,0.00012527,2]
[402284443,1768644632611,-2331.54147446,0.00012527,2]
[402284444,1768644632621,-3976.39730234,0.00012527,2]
[402284450,1768644638355,-1177.8415112,0.00012527,2]
[402284451,1768644638408,-86.48353567,0.00012527,2]
[402284452,1768644638418,-874.3994902,0.00012536,2]
[402284486,1768644640555,-339.83814567,0.00012536,2]
[402284504,1768644643438,-626.16112549,0.00012536,2]
[402284560,1768644646518,-366.30605304,0.00012536,2]
[402284562,1768644646528,-3333.21676899,0.00012536,2]
[402284565,1768644646539,-461.02753643,0.00012536,2]
[402284567,1768644646550,-171.65454,0.00012536,2]
[402284569,1768644646559,-454.35,0.00012951,2]
[402284571,1768644646569,-2119.6657414,0.00013584,2]
[402284572,1768644646578,-1000.0,0.00013699,2]
[402284574,1768644646588,-420.0,0.00013743,2]
[402284576,1768644646597,-616.4171657,0.00013749,2]
[402284578,1768644646607,-500.0,0.00013751,2]
[402284580,1768644646616,-500.0,0.00013751,2]
[402284582,1768644646626,-500.0,0.00013751,2]
[402284584,1768644646635,-500.0,0.00013751,2]
[402284586,1768644646645,-500.0,0.00013751,2]
[402284588,1768644646654,-500.0,0.00013751,2]
[402284590,1768644646664,-500.0,0.00013751,2]
[402284592,1768644646673,-500.0,0.00013751,2]
[402284594,1768644646683,-373.0418437,0.00013751,2]
[402284836,1768644695846,350.0,0.0001,10]
[402284837,1768644832491,201.15,8.43e-05,2]
[402284838,1768644911480,196.03,8.173e-05,2]
[402284839,1768644911851,294.05,8.854e-05,2]
[402284840,1768644988800,183.56,8.497e-05,2]
[402284841,1768645142788,178.88,8.551e-05,2]
[402284842,1768645220602,174.33,8.396e-05,2]
[402284846,1768645298078,169.89,8.075e-05,2]
[402284847,1768645298558,254.84,8.748e-05,2]
[402284848,1768645377243,159.08,8.097e-05,2]
[402284849,1768645378065,238.62,8.771e-05,2]
[402284850,1768645456581,223.44,8.767e-05,2]
[402284851,1768645534799,214.91,8.745e-05,2]
[402284854,1768645613167,206.7,8.738e-05,2]
[402284855,1768645690470,198.81,8.744e-05,2]
[402284913,1768645767217,191.22,8.74e-05,2]
[402285014,1768645832320,-550.0,9.264e-05,2]
[402285015,1768645832330,-194.20773983,9.308e-05,2]
[402285016,1768645832339,-254.96,9.412e-05,2]
[402285017,1768645832349,-318.7,0.00010084,2]
[402285018,1768645832360,-382.44,0.00010757,2]
[402285020,1768645832369,-300.0,0.00010778,2]
[402285022,1768645832379,-229.165133,0.00011308,2]
[402285023,1768645832388,-446.17,0.00011429,2]
[402285024,1768645832397,-300.0,0.00011514,2]
[402285026,1768645832407,-1200.0,0.00011514,2]
[402285027,1768645832417,-17651.331518,0.00011515,2]
[402285029,1768645832426,-2563.9239321,0.00011738,2]
[402285031,1768645832436,-1939.8150565,0.0001175,2]
[402285033,1768645832446,-509.91,0.00012101,2]
[402285035,1768645832454,-573.65,0.00012774,2]
[402285037,1768645832464,-146.83684202,0.00013,2]
[402285039,1768645832475,-53.16315798,0.00013,2]
[402285041,1768645832485,-500.0,0.00013,2]
[402285042,1768645832494,-500.0,0.00013,2]
[402285044,1768645832503,-500.0,0.00013,2]
[402285046,1768645832512,-500.0,0.00013,2]
[402285048,1768645832522,-500.0,0.00013,2]
[402285050,1768645832532,-500.0,0.00013,2]
[402285051,1768645832541,-500.0,0.00013,2]
[402285052,1768645832550,-115.50400006,0.00013,2]
[402285386,1768645843462,-178.01,0.00010779,2]
[402285388,1768645843471,-94.84115859,0.00011452,2]
[402285591,1768645846712,-112.82884141,0.00011452,2]
[402285593,1768645846722,-237.34,0.00012126,2]
[402285595,1768645846732,-267.01,0.000128,2]
[402285597,1768645846741,-500.0,0.00012999,2]
[402285599,1768645846751,-500.0,0.00012999,2]
[402285601,1768645846760,-500.0,0.00012999,2]
[402285603,1768645846769,-512.45463469,0.00012999,2]
[402285605,1768645846779,-500.0,0.00012999,2]
[402285607,1768645846789,-500.0,0.00012999,2]
[402285609,1768645846799,-273.45037133,0.00012999,2]
[402285611,1768645846810,-403.93075638,0.00012999,2]
[402285613,1768645846820,-500.0,0.00012999,2]
[402285615,1768645846831,-500.0,0.00012999,2]
[402285617,1768645846841,-500.0,0.00012999,2]
[402285619,1768645846852,-496.04639995,0.00012999,2]
[402285621,1768645846863,-500.0,0.00012999,2]
[402285623,1768645846874,-500.0,0.00012999,2]
[402285625,1768645846886,-500.0,0.00012999,2]
[402285627,1768645846896,-7296.4664224,0.00013004,2]
[402285629,1768645846908,-2489.03807912,0.00013308,2]
[402285631,1768645846919,-264.12252617,0.00013308,2]
[402285633,1768645846929,-6326.38883834,0.00013358,2]
[402285646,1768646294415,179.36758165,8.9e-05,2]
[402285649,1768646720782,429.0,0.000154,120]
[402285654,1768646830619,175.812823,0.00012156,120]
[402285748,1768647038679,-343.3,0.00011356,2]
[402285749,1768647038689,-187.91372887,0.00011776,2]
[402285750,1768647038698,-927.0,0.00012,2]
[402285751,1768647038707,-175.812823,0.00012156,2]
[402285752,1768647038717,-207.69295594,0.00012196,2]
[402285753,1768647038725,-243.58900504,0.00012296,2]
[402285754,1768647038737,-627.14204026,0.00012296,2]
[402285755,1768647038745,-1232.8343314,0.00012296,2]
[402285756,1768647038755,-497.8328484,0.00012296,2]
[402285757,1768647038764,-336.95405787,0.00012509,2]
[402285758,1768647038773,-297.448,0.00012993,2]
[402285759,1768647038782,-500.0,0.00013084,2]
[402285760,1768647038791,-500.0,0.00013084,2]
[402285761,1768647038800,-500.0,0.00013221,2]
[402285762,1768647038809,-500.0,0.00013221,2]
[402285763,1768647038817,-272.56693032,0.00013221,2]
[402285764,1768647038827,-500.0,0.00013257,2]
[402285765,1768647038836,-387.16281403,0.00013257,2]
[402285766,1768647038845,-388.44959999,0.00013257,2]
[402285767,1768647038857,-425.77977708,0.00013257,2]
[402285768,1768647038869,-609.91544623,0.00013257,2]
[402285769,1768647038879,-518801.48975824,0.00013258,2]
[402285832,1768647040981,-358.36397932,0.00013258,2]
[402285835,1768647040996,-7061.90857568,0.00013258,2]
[402286851,1768647916628,4491.64,8.93e-05,2]
[402286929,1768648237829,-300.0,0.00012328,2]
[402286930,1768648237839,-939.0,0.00012328,2]
[402286931,1768648237848,-191.70510233,0.00012328,2]
[402286932,1768648237858,-191.80824123,0.00012329,2]
[402286933,1768648237869,-2003.95175877,0.00012329,2]
[402286934,1768648237879,-1829.8,0.00012329,2]
[402286935,1768648237889,-1524.84,0.00012329,2]
[402286936,1768648237898,-1270.7,0.00012329,2]
[402286937,1768648237907,-1058.91,0.00012329,2]
[402286938,1768648237917,-882.43,0.00012329,2]
[402286939,1768648237926,-735.36,0.00012329,2]
[402286940,1768648237935,-612.8,0.00012329,2]
[402286941,1768648237945,-510.66,0.00012329,2]
[402286942,1768648237955,-425.55,0.00012329,2]
[402286943,1768648237965,-354.63,0.00012329,2]
[402286944,1768648237974,-295.52,0.00012329,2]
[402286945,1768648237984,-246.27,0.00012329,2]
[402286946,1768648237993,-205.22,0.00012329,2]
[402286947,1768648238003,-171.02,0.00012329,2]
[402286948,1768648238012,-855.13,0.00012329,2]
[402286949,1768648238022,-298.906,0.00012895,2]
[402286950,1768648238032,-12000.0,0.00013,2]
[402286951,1768648238045,-688087.55798859,0.00013058,2]
[402286964,1768648239981,-18510.29607888,0.00013058,2]
[402286988,1768648246039,-1644.47234125,0.00013058,2]
[402286998,1768648522247,5086.93231086,0.0001,10]
[402287010,1768649054460,2048.10930863,0.000154,120]
[402287044,1768649431757,-1123.02642622,0.00011078,2]
[402287045,1768649431769,-3876.97357378,0.00011078,2]
[402287046,1768649431778,-576.0,0.00011078,2]
[402287047,1768649431787,-284.86496557,0.00011134,2]
[402287048,1768649431797,-300.0,0.00011188,2]
[402287049,1768649431807,-1200.0,0.00011188,2]
[402287051,1768649431816,-300.0,0.00011189,2]
[402287052,1768649431825,-300.0,0.00011189,2]
[402287053,1768649431834,-300.0,0.00011189,2]
[402287054,1768649431844,-5000.0,0.0001119,2]
[402287055,1768649431853,-526.13207335,0.00011207,2]
[402287056,1768649431863,-207.69295594,0.0001155,2]
[402287057,1768649431872,-420.0,0.00012292,2]
[402287058,1768649431881,-420.0,0.00012293,2]
[402287059,1768649431891,-1680.0,0.00012307,2]
[402287061,1768649431900,-191.81,0.00012329,2]
[402287063,1768649431909,-1080.43,0.00012329,2]
[402287064,1768649431918,-900.36,0.00012329,2]
[402287065,1768649431928,-750.3,0.00012329,2]
[402287066,1768649431937,-625.25,0.00012329,2]
[402287067,1768649431946,-521.04,0.00012329,2]
[402287068,1768649431956,-434.2,0.00012329,2]
[402287069,1768649431966,-32584.58130912,0.00012329,2]
[402287070,1768649431976,-361.83,0.00012329,2]
[402287071,1768649431986,-301.53,0.00012329,2]
[402287072,1768649431996,-251.27,0.00012329,2]
[402287073,1768649432005,-209.4,0.00012329,2]
[402287074,1768649432015,-174.5,0.00012329,2]
[402287075,1768649432026,-872.5,0.00012329,2]
[402287076,1768649432036,-363.405151,0.00012778,2]
[402287077,1768649432046,-426.94081236,0.00012956,2]
[402287078,1768649432057,-298.04584395,0.00012956,2]
[402287079,1768649432066,-500.0,0.00012956,2]
[402287080,1768649432075,-286.95610693,0.00012956,2]
[402287081,1768649432083,-261.3923341,0.00012956,2]
[402287082,1768649432093,-182.47704732,0.00012956,2]
[402287083,1768649432102,-172.34718431,0.00012956,2]
[402287084,1768649432112,-347.93910065,0.00012956,2]
[402287085,1768649432123,-489.42537568,0.00012956,2]
[402287086,1768649432132,-500.0,0.00012956,2]
[402287087,1768649432141,-34167.56733576,0.00012957,2]
[402287088,1768649432157,-9854.02710172,0.00012957,2]
[402287129,1768649437955,-1132.07714844,0.00012957,2]
[402287130,1768649437966,-4905.58364292,0.00012957,2]
[402287131,1768649437977,-3823.19028699,0.00012957,2]
[402287132,1768649437988,-3610.35764539,0.00012957,2]
[402287133,1768649438017,-942507.19683878,0.00012957,2]
[402287134,1768649438026,-385.28787092,0.00012961,2]
[402287135,1768649438036,-151.0,0.00013,2]
[402287136,1768649438045,-348.0,0.00013058,2]
[402287137,1768649438055,-348.0,0.00013058,2]
[402287138,1768649438063,-348.0,0.00013058,2]
[402287139,1768649438072,-348.0,0.00013058,2]
[402287140,1768649438081,-348.0,0.00013058,2]
[402287141,1768649438091,-348.0,0.00013058,2]
[402287142,1768649438100,-348.0,0.00013058,2]
[402287143,1768649438109,-348.0,0.00013058,2]
[402287144,1768649438118,-348.0,0.00013058,2]
[402287145,1768649438127,-348.0,0.00013058,2]
[402287146,1768649438136,-348.0,0.00013058,2]
[402287147,1768649438144,-348.0,0.00013058,2]
[402287148,1768649438153,-348.0,0.00013058,2]
[402287149,1768649438162,-348.0,0.00013058,2]
[402287150,1768649438171,-348.0,0.00013058,2]
[402287151,1768649438180,-348.0,0.00013058,2]
[402287152,1768649438189,-348.0,0.00013058,2]
[402287153,1768649438199,-348.0,0.00013058,2]
[402287154,1768649438208,-348.0,0.00013058,2]
[402287155,1768649438218,-348.0,0.00013058,2]
[402287156,1768649438227,-348.0,0.00013058,2]
[402287158,1768649438236,-348.0,0.00013058,2]
[402287160,1768649438245,-348.0,0.00013058,2]
[402287161,1768649438255,-348.0,0.00013058,2]
[402287162,1768649438265,-348.0,0.00013058,2]
[402287163,1768649438275,-348.0,0.00013058,2]
[402287164,1768649438284,-348.0,0.00013058,2]
[402287165,1768649438294,-348.0,0.00013058,2]
[402287166,1768649438303,-348.0,0.00013058,2]
[402287167,1768649438313,-348.0,0.00013058,2]
[402287168,1768649438323,-348.0,0.00013058,2]
[402287169,1768649438332,-348.0,0.00013058,2]
[402287170,1768649438342,-348.0,0.00013058,2]
[402287171,1768649438351,-348.0,0.00013058,2]
[402287172,1768649438361,-348.0,0.00013058,2]
[402287173,1768649438370,-348.0,0.00013058,2]
[402287174,1768649438380,-348.0,0.00013058,2]
[402287175,1768649438390,-348.0,0.00013058,2]
[402287176,1768649438754,-348.0,0.00013058,2]
[402287177,1768649438791,-348.0,0.00013058,2]
[402287178,1768649438803,-348.0,0.00013058,2]
[402287179,1768649438813,-348.0,0.00013058,2]
[402287180,1768649438823,-348.0,0.00013058,2]
[402287181,1768649438836,-348.0,0.00013058,2]
[402287182,1768649438847,-348.0,0.00013058,2]
[402287183,1768649438857,-348.0,0.00013058,2]
[402287184,1768649438867,-178.94061386,0.00013058,2]
[402287185,1768649438878,-348.0,0.00013058,2]
[402287186,1768649438889,-500.0,0.00013058,2]
[402287187,1768649438899,-501.51383145,0.0001308,2]
[402287188,1768649438909,-2006.05532581,0.0001308,2]
[402287189,1768649438919,-4509.11085859,0.0001308,2]
[402287190,1768649438929,-532.27925821,0.0001308,2]
[402287191,1768649438939,-2129.11703283,0.0001308,2]
[402287192,1768649438949,-153.0,0.000131,2]
[402287193,1768649438959,-198.3221028,0.000131,2]
[402287194,1768649438968,-870.7310452,0.0001313,2]
[402287195,1768649438978,-243.5890052,0.0001313,2]
[402287196,1768649438987,-832.8568996,0.0001313,2]
[402287197,1768649438997,-336.14065937,0.00013134,2]
[402287198,1768649439007,-152.93233364,0.00013137,2]
[402287199,1768649439016,-197.19915157,0.00013137,2]
[402287200,1768649439025,-500.0,0.00013137,2]
[402287201,1768649439035,-500.0,0.00013137,2]
[402287202,1768649439044,-500.0,0.00013137,2]
[402287203,1768649439054,-778.0,0.00013137,2]
[402287204,1768649439064,-500.0,0.00013137,2]
[402287205,1768649439074,-500.0,0.00013137,2]
[402287206,1768649439084,-500.0,0.00013137,2]
[402287207,1768649439094,-500.0,0.00013137,2]
[402287208,1768649439107,-500.0,0.00013137,2]
[402287209,1768649439116,-306.0,0.000132,2]
[402287210,1768649439126,-1518.4575751,0.0001324,3]
[402287211,1768649439136,-500.0,0.00013273,2]
[402287212,1768649439146,-500.0,0.00013273,2]
[402287213,1768649439156,-500.0,0.00013273,2]
[402287214,1768649439166,-500.0,0.00013273,2]
[402287215,1768649439176,-500.0,0.00013273,2]
[402287216,1768649439185,-500.0,0.00013273,2]
[402287217,1768649439195,-500.0,0.00013273,2]
[402287218,1768649439205,-500.0,0.00013273,2]
[402287219,1768649439215,-500.0,0.00013273,2]
[402287220,1768649439225,-500.0,0.00013273,2]
[402287221,1768649439235,-500.0,0.00013273,2]
[402287222,1768649439245,-500.0,0.00013273,2]
[402287223,1768649439256,-500.0,0.00013273,2]
[402287224,1768649439266,-152.71558445,0.00013274,2]
[402287225,1768649439276,-500.0,0.00013274,2]
[402287226,1768649439287,-604.40863637,0.00013274,2]
[402287227,1768649439297,-500.0,0.00013274,2]
[402287228,1768649439307,-778.0,0.00013274,2]
[402287229,1768649439319,-500.0,0.00013274,2]
[402287230,1768649439328,-500.31756629,0.00013274,2]
[402287231,1768649439340,-500.0,0.00013274,2]
[402287232,1768649439351,-500.0,0.00013274,2]
[402287233,1768649439361,-500.0,0.00013274,2]
[402287234,1768649439371,-150.32930833,0.00013274,2]
[402287235,1768649439380,-165.80293607,0.00013274,2]
[402287236,1768649439390,-500.0,0.00013274,2]
[402287237,1768649439400,-500.0,0.00013274,2]
[402287238,1768649439410,-151.0,0.000133,2]
[402287239,1768649439420,-500.0,0.00013332,2]
[402287240,1768649439429,-232.84413092,0.00013411,2]
[402287241,1768649439440,-500.0,0.00013411,2]
[402287242,1768649439451,-500.0,0.00013411,2]
[402287243,1768649439462,-778.0,0.00013411,2]
[402287244,1768649439472,-500.0,0.00013411,2]
[402287246,1768649439481,-500.0,0.00013411,2]
[402287247,1768649439491,-422.56693032,0.00013411,2]
[402287248,1768649439500,-500.0,0.00013411,2]
[402287249,1768649439509,-500.0,0.00013411,2]
[402287250,1768649439519,-500.0,0.00013411,2]
[402287251,1768649439529,-150.90043421,0.00013411,2]
[402287252,1768649439538,-30000.0,0.00013464,2]
[402287253,1768649439549,-151.0,0.00013464,2]
[402287254,1768649439558,-151.0,0.00013464,2]
[402287255,1768649439567,-250.0,0.00013464,2]
[402287256,1768649439577,-151.0,0.00013464,2]
[402287257,1768649439586,-445.202766,0.00013464,2]
[402287259,1768649439596,-250.0,0.00013464,2]
[402287260,1768649439605,-201.18700456,0.00013464,2]
[402287261,1768649439615,-151.0,0.00013464,2]
[402287262,1768649439624,-250.0,0.00013464,2]
[402287263,1768649439636,-151.0,0.00013464,2]
[402287264,1768649439645,-250.0,0.00013464,2]
[402287265,1768649439655,-151.0,0.00013464,2]
[402287266,1768649439664,-151.0,0.00013464,2]
[402287268,1768649439673,-151.0,0.00013464,2]
[402287269,1768649439683,-193.25034379,0.00013464,2]
[402287270,1768649439693,-1957.856,0.00013464,2]
[402287272,1768649439701,-2000.0,0.00013464,2]
[402287274,1768649439711,-151.0,0.00013464,2]
[402287276,1768649439721,-2000.0,0.00013464,2]
[402287278,1768649439731,-151.0,0.00013464,2]
[402287280,1768649439741,-300.73,0.00013464,2]
[402287282,1768649439750,-2000.0,0.00013464,2]
[402287284,1768649439762,-151.0,0.00013464,2]
[402287286,1768649439772,-250.0,0.00013464,2]
[402287288,1768649439782,-225.94082858,0.00013464,2]
[402287290,1768649439791,-151.0,0.00013464,2]
[402287292,1768649439801,-250.0,0.00013464,2]
[402287295,1768649439811,-151.0,0.00013464,2]
[402287296,1768649439821,-250.0,0.00013464,2]
[402287298,1768649439830,-151.0,0.00013464,2]
[402287300,1768649439839,-250.0,0.00013464,2]
[402287302,1768649439849,-151.0,0.00013464,2]
[402287304,1768649439858,-162.380719,0.00013464,2]
[402287306,1768649439868,-250.0,0.00013464,2]
[402287308,1768649439878,-151.0,0.00013464,2]
[402287310,1768649439887,-250.0,0.00013464,2]
[402287312,1768649439896,-151.0,0.00013464,2]
[402287314,1768649439906,-250.0,0.00013464,2]
[402287316,1768649439916,-151.0,0.00013464,2]
[402287318,1768649439925,-250.0,0.00013464,2]
[402287320,1768649439935,-151.0,0.00013464,2]
[402287322,1768649439944,-250.0,0.00013464,2]
[402287324,1768649439954,-151.0,0.00013464,2]
[402287326,1768649439964,-250.0,0.00013464,2]
[402287328,1768649439974,-151.0,0.00013464,2]
[402287330,1768649439983,-250.0,0.00013464,2]
[402287332,1768649439994,-151.0,0.00013464,2]
[402287334,1768649440004,-250.0,0.00013464,2]
[402287336,1768649440014,-151.0,0.00013464,2]
[402287338,1768649440023,-250.0,0.00013464,2]
[402287340,1768649440033,-162.380719,0.00013464,2]
[402287342,1768649440043,-151.0,0.00013464,2]
[402287344,1768649440052,-250.0,0.00013464,2]
[402287346,1768649440062,-168.3888056,0.00013464,2]
[402287348,1768649440071,-151.0,0.00013464,2]
[402287350,1768649440080,-174.61919141,0.00013464,2]
[402287352,1768649440090,-151.0,0.00013464,2]
[402287354,1768649440100,-181.08010149,0.00013464,2]
[402287356,1768649440111,-187.78006525,0.00013464,2]
[402287358,1768649440120,-194.72792766,0.00013464,2]
[402287360,1768649440130,-2150.738,0.00013464,2]
[402287362,1768649440140,-201.93286099,0.00013464,2]
[402287364,1768649440150,-209.40437684,0.00013464,2]
[402287366,1768649440159,-217.15233878,0.00013464,2]
[402287367,1768649440168,-225.18697532,0.00013464,2]
[402287368,1768649440178,-233.51889341,0.00013464,2]
[402287369,1768649440187,-242.15909246,0.00013464,2]
[402287370,1768649440196,-251.11897888,0.00013464,2]
[402287371,1768649440205,-260.4103811,0.00013464,2]
[402287372,1768649440215,-270.0455652,0.00013464,2]
[402287373,1768649440224,-280.03725112,0.00013464,2]
[402287374,1768649440234,-290.39862941,0.00013464,2]
[402287375,1768649440244,-301.1433787,0.00013464,2]
[402287376,1768649440254,-587.0,0.00013505,2]
[402287377,1768649440263,-164.0,0.00013506,2]
[402287378,1768649440272,-2030.296672,0.00013519,2]
[402287379,1768649440282,-247.84065001,0.00013527,2]
[402287380,1768649440291,-2351.0,0.00013537,2]
[402287381,1768649440301,-454.18892172,0.00013548,2]
[402287382,1768649440311,-778.0,0.00013548,2]
[402287383,1768649440320,-500.0,0.00013548,2]
[402287384,1768649440329,-556.00368609,0.00013548,2]
[402287385,1768649440339,-500.0,0.00013548,2]
[402287386,1768649440348,-419.99180641,0.00013548,2]
[402287387,1768649440358,-500.0,0.00013548,2]
[402287388,1768649440367,-190.47763541,0.00013548,2]
[402287389,1768649440377,-150.70214574,0.00013548,2]
[402287390,1768649440387,-2105.41764886,0.00013574,2]
[402287391,1768649440398,-500.0,0.00013606,2]
[402287392,1768649440408,-2183.31810187,0.00013629,2]
[402287393,1768649440418,-398.025611,0.00013673,2]
[402287394,1768649440427,-300.0,0.00013673,2]
[402287395,1768649440438,-2264.10087164,0.00013684,2]
[402287396,1768649440448,-778.0,0.00013685,2]
[402287397,1768649440458,-500.0,0.00013685,2]
[402287398,1768649440468,-500.0,0.00013685,2]
[402287399,1768649440479,-201.43930861,0.00013685,2]
[402287400,1768649440490,-250.0,0.00013685,2]
[402287401,1768649440500,-150.88569815,0.00013685,2]
[402287402,1768649440512,-500.0,0.00013698,2]
[402287403,1768649440522,-500.0,0.00013698,2]
[402287404,1768649440532,-500.0,0.00013698,2]
[402287405,1768649440542,-500.0,0.00013698,2]
[402287406,1768649440554,-500.0,0.00013698,2]
[402287407,1768649440564,-500.0,0.00013698,2]
[402287408,1768649440574,-500.0,0.00013698,2]
[402287409,1768649440583,-500.0,0.00013698,2]
[402287410,1768649440593,-500.0,0.00013698,2]
[402287411,1768649440603,-500.0,0.00013698,2]
[402287412,1768649440612,-500.0,0.00013698,2]
[402287413,1768649440622,-576.52,0.00013698,2]
[402287414,1768649440633,-500.0,0.00013698,2]
[402287415,1768649440643,-275.23827501,0.00013698,2]
[402287416,1768649440655,-500.0,0.00013698,2]
[402287417,1768649440664,-500.0,0.00013698,2]
[402287418,1768649440674,-500.0,0.00013698,2]
[402287419,1768649440687,-500.0,0.00013698,2]
[402287420,1768649440697,-500.0,0.00013698,2]
[402287421,1768649440707,-500.0,0.00013698,2]
[402287422,1768649440716,-500.0,0.00013698,2]
[402287423,1768649440725,-500.0,0.00013698,2]
[402287424,1768649440735,-500.0,0.00013698,2]
[402287425,1768649440746,-500.0,0.00013698,2]
[402287426,1768649440757,-500.0,0.00013698,2]
[402287427,1768649440768,-500.0,0.00013698,2]
[402287428,1768649440778,-500.0,0.00013698,2]
[402287429,1768649440788,-500.0,0.00013698,2]
[402287430,1768649440799,-500.0,0.00013698,2]
[402287431,1768649440809,-500.0,0.00013698,2]
[402287432,1768649440818,-500.0,0.00013698,2]
[402287433,1768649440828,-500.0,0.00013698,2]
[402287434,1768649440838,-218.61799449,0.00013698,2]
[402287435,1768649440847,-505.79259852,0.00013698,2]
[402287436,1768649440856,-500.0,0.00013698,2]
[402287437,1768649440866,-500.0,0.00013698,2]
[402287438,1768649440875,-500.0,0.00013698,2]
[402287439,1768649440884,-500.0,0.00013698,2]
[402287440,1768649440894,-500.0,0.00013698,2]
[402287441,1768649440904,-500.0,0.00013698,2]
[402287442,1768649440913,-500.0,0.00013698,2]
[402287443,1768649440923,-500.0,0.00013698,2]
[402287444,1768649440933,-500.0,0.00013698,2]
[402287445,1768649440943,-500.0,0.00013698,2]
[402287446,1768649440952,-500.0,0.00013698,2]
[402287447,1768649440963,-559.52204836,0.00013698,2]
[402287448,1768649440972,-500.0,0.00013698,2]
[402287449,1768649440983,-500.0,0.00013698,2]
[402287450,1768649440993,-649.34424817,0.00013698,2]